Workbook

Sheet Biztosítási termékismertető

Sheet Ajánlat1
C5: Kötvényszám:
AY6: UNION-Rendezvényszervezői felelősségbiztosítás
B7: as | AY7: Biztosítási Ajánlat
C10: Módozat | F10: 7810 | L10: Üzletkötő neve: | AF10: Üzletkötő kódja:
C11: Átdolgozás: | G11: nem | P11: Előzmény kötv.száma: | X11: Adóigazgatási szám: 1049 1984-2-44 | AN11: Ajánlat azonosító:
C12: Készítette: | R12: =CONCATENATE(" Tel: ",IFERROR(VLOOKUP(G12,D174:K187,7,FALSE),"")," E-mail: ",IFERROR(VLOOKUP(G12,D174:K187,4,FALSE),"")) -> Tel: E-mail: | AM12: Hiv.szám:
C15: Szerződő / Biztosított neve:
C17: Adószáma: | V17: Tel: | AJ17: E-mail:
C19: Székhelye:
G20: ir.sz. | U20: helység | AM20: közterület | AT20: hsz.em.ajtó
C22: Levelezési Címe:
G23: ir.sz. | U23: helység | AM23: közterület | AT23: hsz.em.ajtó
C25: Biztosított tevékenység: | K25: Rendezvényszervezés
C27: Kockázatviselés helye (rendezvény helyszíne):
G28: ir.sz. | U28: helység | AM28: közterület | AT28: hsz.em.ajtó
C30: Rendezvény lebonyolítására szolgáló létesítmény megnevezése (ha értelmezhető):
C32: Területi hatály: | K32: Magyarország, ezen belül a kockázatviselés helye
C34: Biztosítás tartama: | K34: határozott
C36: Díjfizetés gyakorisága: | K36: egyszeri, egyösszegű
C38: Díjfizetés módja: | K38: a biztosító által kiállított számviteli bizonylat alapján, átutalással
C40: Dolgozói létszám:
C42: Biztosított rendezvény típusa:
C44: Biztosított rendezvény: | AG44: (rendezvény megnevezése)
C46: Kockázatviselés kezdete: | Q46: Vége: | AB46: Rendezvény tartama: | AH46: =IF(OR(K46="",S46=""),0,S46-K46+1) -> 0 | AI46: nap
C48: Várható látogatói létszám (max. fő /nap):
C51: Limit:
C53: Önrész:
C55: Rendezvényszervezői felelősségbiztosítás
C56: kiegészítő fedezetek:
D57: Általános felelősségbiztosítás
D58: Bérelt ingatlan (felszerelési tárgyak) fedezete
D59: Ruhatári szolgáltatás
D60: Hangtechnika, világítástechnika szerelés
D61: Ideiglenes felépítmények felállítása, üzemeltetése, bontása (pl. sátor, színpad)
D62: Vendéglátás, catering tevékenység
D63: Környezetszennyezési fedezet
D64: Alvállalkozók fedezete
C66: Biztosított termékek:
D67: A biztosított által "catering" tevékenysége körében kínált élelmiszerek és italáruk | AC67: kérem
O82: Biztosítási díjösszesítő
Q84: Kis- és középvállalkozások felelősségbiztosítása | AF84: =IFERROR(C161,0) -> 0
Q86: Biztosítási díj: | AF86: =IFERROR(W161,0) -> 0
Q88: Díjfizetési gyakoriság miatti engedmény: | AF88: =IF(F126="éves",0.05,IF(F126="féléves",0.025,0)) -> 0
Q90: Engedménnyel csökkentett éves díj: | AF90: =(AF86*(1-(AF88))) -> 0
N95: A biztosított három alábbi mutatója közül legalább kettő meghaladja-e a következő értékeket:
N96: Mérleg főösszege az 1,5 mrd. Ft-ot
N97: Nettó üzleti forgalma a 3 mrd. Ft-ot
N98: Átlagos alkalmazotti létszám az 1.000 főt
N100: Ezúton nyilatkozom, hogy Társaságunk :
N105: minősül.
C119: Kelt: | E119: =szerz.lakcimhelyseg -> 0 | L119: , | M119: =TODAY() -> 2021-07-01
T120: Biztosításközvetítő aláírása | AK120: Szerződő cégszerű aláírása
C123: igen
C124: nem
C126: éves | F126: egyszeri, egyösszegű | Q126: =VLOOKUP(K126,Tarifa!B31:D40,3,FALSE) -> 
C127: féléves
C128: negyedéves
C130: kérem | W130: szolg.fel + alv.fel
C131: nem kérem | W131: 0 | X131: 0
O134: kockázati osztály | Q134: alapdíj /fő
C135: Tevékenységi lista
C136: =tev.lista ->  | O136: =IFERROR(VLOOKUP(Ajánlat1!C136,'Tevékenységi lista'!A2:C298,2,FALSE),0) -> 0 | Q136: =VLOOKUP(Ajánlat1!K130,Tarifa!E12:F17,2,FALSE) -> 
AO138: Kötvény?
C139: Általános felelősség biztosítás | L139: kock. ezrelék | P139: Forg. Korr | T139: Limitkorr | W139: Önrész | Z139: Min. Díj | AD139: Díj | AO139: FALSE
C140: =Q136 ->  | H140: mioFt | L140: =VLOOKUP(Ajánlat1!O136,Tarifa!B4:C8,2,FALSE) ->  | P140: =IF(tartam=1,1,IF(tartam=2,1.23,1.46*LN(tartam))) ->  | T140: =VLOOKUP(K126,Tarifa!B30:C40,2,FALSE) ->  | W140: =VLOOKUP(T126,Tarifa!B45:C48,2,FALSE) ->  | Z140: 40000 | AD140: =IFERROR(C140*L140*P140*T140*W140,"") -> 
C143: Munkáltatói felelősségbiztosítás | L143: kock. Alapdíj | P143: Létszám korr | T143: Limitkorr | W143: Önrész | Z143: Min. Díj | AD143: Díj
C144: =Z65 -> 0 | F144: fő | L144: =Ajánlat1!Q136 ->  | P144: =VLOOKUP(Ajánlat1!C144,Tarifa!E12:F20,2) ->  | T144: =T140 ->  | W144: =W140 ->  | Z144: =VLOOKUP(Ajánlat1!O136,Tarifa!$B$54:$C$58,2,FALSE) ->  | AD144: =IF(C140>0,IF(C144=0,"",IF(P144=0,0,IF(C144*L144*P144*T144*W144>Z144,C144*L144*P144*T144*W144,Z144))),"") -> 
F147: Kiegészítők
F148: =IF(Ajánlat1!AC58=$C$130,Tarifa!C74,0) -> 0 | G148: =IFERROR(Ajánlat1!$AD$140*Ajánlat1!F148,"") -> 
F149: =IF(Ajánlat1!AC59=$C$130,Tarifa!C79,0) -> 0 | G149: =IFERROR(Ajánlat1!$AD$140*Ajánlat1!F149,"") -> 
F150: =IF(Ajánlat1!AC60=$C$130,Tarifa!C76,0) -> 0 | G150: =IFERROR(IF(egypluszketto,0,Ajánlat1!$AD$140*Ajánlat1!F150),"") -> 
F151: =IF(Ajánlat1!AC61=$C$130,Tarifa!C77,0) -> 0 | G151: =IFERROR(IF(G150>0,0,Ajánlat1!$AD$140*Ajánlat1!F151),"") -> 0
F152: =IF(Ajánlat1!AC62=$C$130,Tarifa!C78,0) -> 0 | G152: =IFERROR(Ajánlat1!$AD$140*Ajánlat1!F152,"") -> 
F153: =IF(Ajánlat1!AC63=$C$130,Tarifa!C75,0) -> 0 | G153: =IFERROR(Ajánlat1!$AD$140*Ajánlat1!F153,"") -> 
F154: =IF(Ajánlat1!AC64=$C$130,Tarifa!C80,0) -> 0 | G154: =IFERROR(Ajánlat1!$AD$140*Ajánlat1!F154,"") -> 
F155: =IF(Ajánlat1!AC65=$C$130,Tarifa!C81,0) -> 0
F156: =IF(Ajánlat1!AC66=$C$130,Tarifa!C82,0) -> 0 | G156: =IFERROR(Ajánlat1!$AD$140*Ajánlat1!F156,"") -> 
F157: =IF(Ajánlat1!AC67=$C$130,Tarifa!C83,0) -> 0 | G157: =IFERROR(($AD$140+G148+G149+G150)*F157,"") -> 
F158: =IF(Ajánlat1!AC68=$C$130,Tarifa!C84,0) -> 0
F159: =IF(orszag="Európa",Tarifa!C85,0) -> 0 | G159: =IFERROR(Ajánlat1!$AD$140*Ajánlat1!F159,"") -> 
C160: Kieg Díj | W160: Éves Díj
C161: =AD140+G148+G149+G150+G151+G152+G153+G154+G156+G157+G159+IF(F155=1,AD144,0) ->  | W161: =IF(C161<Z140,Z140,Ajánlat1!C161) -> 
D170: Lejárati Dátum | I170: Verzió | L170: lejárati jelszó
D171: 2021-12-31 | I171: v1.96 | L171: felelosseg
D174: Ambrus Péter | G174: ambrus.peter@unionbiztosito.hu | J174: 666-7656
D175: Árokszállási Zoltán | G175: ajanlatkeres@unionbiztosito.hu | J175: 486-4366
D176: Csanádi Zoltán | G176: csanadi.zoltan@unionbiztosito.hu | J176: 486-4235
D177: Dobi László | G177: dobi.laszlogabor@unionbiztosito.hu | J177: 486-4346
D178: Hajdók Viktória | G178: hajdok.viktoria@unionbiztosito.hu | J178: 486-4213
D179: Klinger József | G179: klinger.jozsef@unionbiztosito.hu | J179: 486-4232
D180: Utry Oszkár | G180: ajanlatkeres@unionbiztosito.hu | J180: 666-7652

Sheet Ajánlat2
B1: Kis és középvállallatok felelősségbiztosítása | L1: SZÍNKÓDOK, MAGYARÁZATOK
B2: Biztosított kockázatok: | C2: Általános felelősségbiztosítás
C3: valamint:
B4: Szolgáltatói felelősségbiztosítás | L4: innentől választható / legördülő menü
B5: Szolgáltatói felelősség kiterjesztve a szolgáltatás tárgyára (egyedi záradék szerint) | L5: csak akkor választható, ha a szolg fel korábban kiválasztásra került
B6: Szolgáltatói felelősség kiterjesztve rakodási tevékenységre (egyedi záradék szerint) | L6: csak akkor választható, ha a szolg fel korábban kiválasztásra került
B7: Termékfelelősség-biztosítás
B8: Kiterjesztett termékfelelősség-biztosítás | L8: csak akkor választható, ha a term fel korábban kiválasztásra került
B9: Bérlői felelősségbiztosítás
B10: Bérbeadói felelősségbiztosítás
B11: Munkáltatói felelősségbiztosítás
B12: Környezetszennyezési felelősségbiztosítás
B13: Alvállalkozói fedezet (egyedi záradék szerint)
B14: Építőipari tevékenység fedezete (egyedi záradék szerint) | L14: ha 5-ös kock. osztály, ez feljön, ÉS az önrész kötelezően min. 10%, de min 100 000 Ft/kár
B15: Területi hatály kiterjesztése Európa (egyedi záradék szerint) | L15: ha Európa
B17: Dolgozói létszám: | D17: 14 | E17: fő | L17: opcionálisan (munk fel esetén) kitöltendő mező
B19: Díjszámítási alap (éves bruttó forgalom): | D19: 2465 | E19: MFt | L19: kötelezően kitöltendő mező
B21: Kombinált limit: | D21: 5 MFt/kár, 10 MFt/év | L21: választható limitek legördülő menüben
B24: Önrész: | D24: 10 %, de min. 25 000 Ft | L24: választható önrészek legördülő menüben
B26: Díjtétel: | D26: =D28/(D19*1000000)*100 ->  | L26: háttértábla (tarifáló) alapján
B28: Éves díj: | D28: =Ajánlat1!C161 ->  | L28: háttértábla (tariáfló) alapján
B30: Biztosítási feltételek
B32: Felelősségbiztosítások Szerződési Feltételei (U70060)
B33: Rendezvényszervezői Felelősségbiztosítás Különös Biztosítási Feltételek (U70066)
L34: ha építőipari tevékenység fedezetét választja, akkor ez jön föl az A38 helyett
B35: azzal, hogy a feltételek 2.1.a) pontjában írt kizáró rendelkezés e körben történő részleges feloldása és a feltételek egyéb rendelkezéseinek változatlan alkalmazása mellett kiterjed a rendezvény során igénybe vett (bérelt) idegen tulajdonú ingatlanokban, valamint berendezési és felszerelési tárgyakban bekövetkezett károkra is. | L35: innentől akkor jönnek föl, ha fent kiválasztásra kerültek
L36: ha építőipari tevékenység fedezetét választja, akkor ez jön föl az A41 helyett
B37: azzal, hogy a feltételek 2.1.o.) pontjában írt kizáró rendelkezés feloldása mellett a fedezet kiterjed a bérlői felelősség körébe tartozó károkra a " Bérlői felelősségbiztosítás Különös Biztosítási Feltételek (U71034)" rendelkezései szerint.
B38: Bérlői felelősségbiztosítás Különös Biztosítási Feltételek (U71034) | L38: a fedezet választása esetén "feljön"
B40: azzal, hogy a feltételek 2.1.i.) pontjában írt kizáró rendelkezés feloldása mellett a fedezet kiterjed a letéti felelősség körében okozott károkra a "Ruhatárban elhelyezett tárgyakban bekövetkezett károk (letéti felelősség) egyedi záradéka" rendelkezései szerint. Ruhatárban elhelyezett tárgyakban bekövetkezett károk (letéti felelősség) egyedi záradéka: A jelen egyedi záradék alkalmazásában biztosítási esemény az a dologi kár, amely a rendezvény látogatója a biztosított által üzemeltetett, erre kijelölt és lezárt, vagy egyéb módon őrzött helyen elhelyezett, vagy az átvételére általa jogosultnak tarthatott személy részére átadott vagyontárgyában következett be és amelyért a szerződésben megnevezett kockázatviselési helyen ruhatári szolgáltatást nyújtó biztosított a Ptk. 467.§-a alapján kártérítési kötelezettséggel tartozik. A ruhatárban elhelyezett tárgyakban bekövetkezett károk fedezete nem terjed ki az értéktárgyakra (ékszer, nemesfém, drágakő, gyűjtemény stb.), okiratokra, értékpapírokra, készpénzre. | L40: a fedezet választása esetén "feljön"
B42: azzal, hogy a feltételek 2.1.k.) pontjában írt kizáró rendelkezés feloldása mellett a fedezet kiterjed az építés-szerelési tevékenységgel okozott károkra az "Építés-szerelési tevékenység záradéka" rendelkezései szerint. Építési-szerelési tevékenység záradéka: A biztosítási fedezet kiterjed az építési-szerelési tevékenységgel összefüggésben bekövetkezett dologi károkra, ide nem értve az épületek, építmények repedéseivel összefüggésben bekövetkezett károkat, valamint az épületben, építményben vibráció, vagy – a föld, illetve egyéb támaszt is ideértve – teherhordó elem eltávolítása, meggyengítése, vagy megépítésének elmaradása miatt bekövetkezett károkat, amennyiben az építési-szerelési tevékenységre a rendezvény helyszínén, a rendezvény lebonyolítására szolgáló épületek, építmények, díszletek, színpadok, sátrak, stb. létesítésével összefüggésben került sor. | L42: alvállalkozói fedezet esetén "feljön"
B44: azzal, hogy a feltételek 2.1.m.) pontjában írt kizáró rendelkezés feloldása mellett a fedezet kiterjed az ételmérgezéssel okozott károkra a „Termékfelelősség-biztosítás Különös Biztosítási Feltételek (U70061)” rendelkezései szerint, | L44: csak akkor jön fel, ha a szolg fel és az alvállalkozói fedezet korábban kiválasztásra került
B45: Termékfelelősség-biztosítás Különös Biztosítási Feltételek (U70061)
B47: azzal, hogy a feltételek 2.1.n.) pontjában írt kizáró rendelkezés feloldása mellett a fedezet kiterjed a környezetszennyezéssel okozott károkra a " Környezetszennyezési Felelősségbiztosítás Különös Biztosítási Feltételek (U71032)" rendelkezései szerint,
B48: Környezetszennyezési Felelősségbiztosítás Különös Biztosítási Feltételek (U71032)
B50: azzal, hogy a feltételek 2.1.r.) pontjában írt kizáró rendelkezés feloldása mellett a fedezet kiterjed az alvállalkozók által okozott károkra az "Alvállalkozói fedezet záradéka" rendelkezései szerint.
B51: Alvállalkozói fedezet egyedi záradéka (2016): A rendezvényszervezői felelősségbiztosítási fedezet a szerződésben írt limit erejéig, a vonatkozó feltételek változatlan alkalmazása mellett kiterjed a biztosított alvállalkozóira is, amennyiben a kárt a biztosított alvállalkozójaként eljárva, ebbéli minőségükben okozták. A jelen felelősségbiztosítási fedezet annyiban áll fönn, amennyiben a kár más biztosítási fedezet (elsődleges fedezet) alapján nem térül meg. A jelen felelősségbiztosítás elsődleges fedezet fennállta esetén a kárra csak annyiban nyújt fedezetet, amennyiben az elsődleges fedezet a biztosítási esemény bekövetkezte előtt bármely okból megszűnt, vagy a biztosítási feltételek eltérő rendelkezése miatt az elsődleges fedezet alapján szolgáltatás nyújtására nem kerül sor, vagy a limit alacsonyabb volta miatt az elsődleges fedezet alapján nyújtott szolgáltatás részleges. A biztosító által nyújtott alvállalkozói fedezet nem szélesebb, mint a vonatkozó feltételek alapján a biztosított számára nyújtott fedezet. Nem terjed ki a fedezet ezen alvállalkozók további alvállalkozóira, valamint a biztosítottak egymásnak okozott káraira.
L53: 5-ös kockázati osztály esetén kötelező (feljön)
L55: Ha Európa
B58: EGYÉB
B60: A biztosítási szerződésre a fentiekben hivatkozott biztosítási feltételek és az ajánlatban foglalt egyedi záradékok együttesen vonatkoznak. A Biztosító nem nyújt fedezetet, nem teljesít kárkifizetést, valamint nem nyújt szolgáltatást, amennyiben ezen fedezet nyújtásával, illetve kár kifizetésével a Biztosító sértené az Egyesült Nemzetek Szervezetének határozata szerinti bármely szankcióit, rendelkezéseit, vagy rendeleteit, valamint Magyarország, az Európai Unió, illetve az Egyesült Államok kereskedelmi, pénzügyi embargóit vagy gazdasági szankcióit, törvényeit vagy rendeleteit, (feltéve, hogy ezek nem sértik az biztosítóra alkalmazandó szabályozásokat vagy nemzeti jogszabályokat). Nem terjed ki a biztosítás azokra a károkra, amelyek bármilyen (bakteriális, vírusos, stb.) kórokozói eredetű járványos megbetegedéssel, betegséggel, vagy fertőzéssel összefüggésben következnek be, és amelyek a kórokozó bármely fajtájától, mutációjától, illetve variánsától származnak.
B62: Díjfizetési engedmény:
B63: Amennyiben a szerződő/biztosított a biztosítási díjat az alábbi díjfizetési gyakorisággal egyenlíti ki, akkor a biztosító a számára a fentiekben megállapított biztosítási díjakból az alábbi díjfizetési engedményeket nyújtja:
B64: - éves díjfizetés esetén: 5,0%
B65: - féléves díjfizetés esetén: 2,5%.
B67: Ajánlatot teszek a túloldalon részletezett biztosításra, amelynek alapján az Union Vienna Insurance Group Biztosító Zrt. azt a kötelezettséget vállalja, hogy díjfizetés ellenében készpénzben megtéríti a különös feltételekben felsorolt biztosítási események során bekövetkező azon károkat, amelyekre a biztosítási szerződés kiterjed. Kijelentem, hogy az ajánlattétel előtt biztosítási igényem felmérése nyomán a vonatkozó termékismertetőket átvettem, áttanulmányoztam és megértettem, a jogszabályban előírt tájékoztatást megkaptam, a biztosítási feltételeket átvettem, áttanulmányoztam és megértettem. Kijelentem, hogy az Adatkezelési tájékoztató a biztosítási ajánlat aláírását megelőzően részemre átadásra került, és tudomással bírok arról, hogy ezen dokumentum a biztosító honlapján (www.union.hu) bármikor megtekinthető.
B69: Tudomásul veszem, hogy: | C69: - jelen ajánlat a biztosító kockázatelbírálásának alapja, továbbá, hogy a biztosítónak az ajánlat beérkezésétől számított 15 nap áll rendelkezésére a kockázat elbírálására,
C70: - a biztosító a kockázatelbírálás eredményeként az ajánlatot jogosult elutasítani, az elutasítást nem köteles megindokolni.
C71: - a biztosító kártérítése - betöréses lopás esetén - a kár időpontjában fennálló vagyonvédelmi színvonal függvényében történik
C72: - a biztosító a tényleges adatoktól való eltérés esetén az alul- és túlbiztosítottságot vizsgálja
B75: Kijelentem, hogy: | C75: - a Felelősségbiztosítások Szerződési Feltételeiben, az Általános Felelősségi Feltételekben és a Különös Felelősségbiztosítási Feltételekben foglaltakat az ajánlat aláírása előtt megismertem,
C76: - a közölt adatok a valóságnak megfelelnek,
C77: - jelen ajánlatomban minden biztosítási szándékommal kapcsolatos igényemet rögzítettek, más szóbeli megállapodás nem történt.
B79: ="Kelt: " & keltez & ", " & TEXT(keltdat, "ÉÉÉÉ.hh.nn") -> Kelt: 0, 2021.07.01
D80: Szerződő cégszerű aláírása
D81: UNION Vienna Insurance Group Biztosító Zrt.

Sheet Tarifa (hidden)
I1: Összeadás | J1: 4/a + 6 + 4/b
A2: 1/a | B2: Általános felelősségbiztosítás díjtételek (ezrelék): | D2: 1/b | E2: rendezvény tartama (nap):
B3: kockázati osztály | C3: ezrelék | J3: Díjfizetési gyakoriság kedvezménye:
B4: 1 | C4: 1.24 | E4: 1 | F4: 4 | J4: féléves | K4: 2,5%
B5: 2 | C5: 1.3 | E5: 6 | F5: 3 | J5: éves | K5: 5%
B6: 3 | C6: 1.33 | E6: 11 | F6: 2
B7: 4 | C7: 1.45 | E7: 21 | F7: 1
A11: 2/a | B11: Forgalom megadása / forgalomkorrekció (függvény) | D11: 2/b | E11: Létszámkorrekció (fő):
B12: =-0,262*LN(x)+2,2125 | E12: 100-ig | F12: 12000
E13: 101-300 | F13: 16800
E14: 301-500 | F14: 20160
E15: 501-1000 | F15: 23940
E16: 1001-1500 | F16: 27770
E17: 1501-2500 | F17: 32215
A28: 3/a és 3/b | B28: Limit kiválasztása / limitkorrekció:
B29: mioFt/kár/év | C29: Limitkorrekció:
B30: 5 MFt/kár, 5 MFt/tartam | C30: 1
B31: 5 MFt/kár, 10 MFt/tartam | C31: 1.07 | D31: 1
B32: 5 MFt/kár, 15 MFt/tartam | C32: 1.124
B33: 5 MFt/kár, 20 MFt/tartam | C33: 1.18
B34: 5 MFt/kár, 25 MFt/tartam | C34: 1.215
B35: 5 MFt/kár, 30 MFt/tartam | C35: 1.239
B36: 10 MFt/kár, 10 MFt/tartam | C36: 1.338 | D36: 1.25
B37: 10 MFt/kár, 20 MFt/tartam | C37: 1.447 | D37: 1.75
B38: 10 MFt/kár, 30 MFt/tartam | C38: 1.577 | D38: 1.94
B39: 20 MFt/kár, 20 MFt/tartam | C39: 1.62 | D39: 2.13
B40: 30 MFt/kár, 30 MFt/tartam | C40: 2.05 | D40: 2.56
A43: 4/a és 4/b | B43: Önrész kiválasztása / önrészkorrekció:
C44: Önrészkorrekció:
B45: 10 %, de min. 50 000 Ft/kár | C45: 1
B46: 10 %, de min. 100 000 Ft/kár | C46: 0.9
B47: 10 %, de min. 250 000 Ft/kár | C47: 0.7
B48: 10 %, de min. 500 000 Ft/kár | C48: 0.5
A52: 5 | B52: Minimáldíj figyelembe vétele (általános és munkáltatói felelősségbiztosítás): | C52: 4/a és 4/b összevetése a minimáldíjjal
B53: kockázati osztály
B54: 1 | C54: 12000
B55: 2 | C55: 16000
B56: 3 | C56: 17500
B57: 4 | C57: 24000
B58: 5 | C58: 67500
A62: 6 | B62: Fedezeti "szorzók" (pl.: 0,5 szorzó = +50% díj) | C62: alap a 2/a "szám" vagy a 3 (ált. fel. min. díj)
B63: bérelt ingatlan/berendezés fedezete | C63: 0.4
B64: építés/szerelés/bontás | C64: 0.5
B65: alvállalkozók | C65: 0.2
B66: termék | C66: 0.4
B67: letét (ruhatár) | C67: 0.2
B68: körny.szenny. | C68: 0.2
B74: Bérelt ingatlan (felszerelési tárgyak) fedezete | C74: 0.4
B75: Ruhatári szolgáltatás | C75: 0.2
B76: Hangtechnika, világítástechnika szerelés | C76: 0.5
B77: Ideiglenes felépímények felállítása, üzemeltetése, bontása (pl. sátor, színpad) | C77: 0.5
B78: Vendéglátás, catering tevékenység | C78: 0.4
B79: Környezetszennyezési fedezet | C79: 0.2
B80: Alvállakozók fedezete | C80: 0.2
H87: dt. | I87: Min.díj
F88: Kock. Oszt. | G88: 2 | H88: =VLOOKUP(G88,B4:C8,2,FALSE) -> 1.3 | I88: =VLOOKUP(G88,B54:C58,2,FALSE) -> 16000
F91: =-0.262*LN(G91)+2.2125 -> 2.2125 | G91: =+G92-1 -> 1 | H91: 2 | I91: =$H$88*F91*1000*G91 -> 2876.25
F92: 2.030895439 | G92: 2 | H92: 2 | I92: 5280.328141
F93: 1.92466358 | G93: 3 | H93: 2 | I93: 7506.187963
F94: 1.849290877 | G94: 4 | H94: 2 | I94: 9616.312562
F95: 1.790827267 | G95: 5 | H95: 2 | I95: 11640.37724
F96: 1.743059019 | G96: 6 | H96: 2 | I96: 13595.86035
F97: 1.702671541 | G97: 7 | H97: 2 | I97: 15494.31102
F98: 1.667686316 | G98: 8 | H98: 2 | I98: 17343.93769
F99: 1.636827161 | G99: 9 | H99: 2 | I99: 19150.87778
F100: 1.609222706 | G100: 10 | H100: 2 | I100: 20919.89517
F101: 1.584251439 | G101: 11 | H101: 1.8 | I101: 22654.79557
F102: 1.561454458 | G102: 12 | H102: 1.8 | I102: 24358.68954
F103: 1.540483268 | G103: 13 | H103: 1.8 | I103: 26034.16724
F104: 1.52106698 | G104: 14 | H104: 1.8 | I104: 27683.41903
F105: 1.502990847 | G105: 15 | H105: 1.8 | I105: 29308.32152
F106: 1.486081755 | G106: 16 | H106: 1.8 | I106: 30910.5005
F107: 1.470198104 | G107: 17 | H107: 1.8 | I107: 32491.3781
F108: 1.455222599 | G108: 18 | H108: 1.8 | I108: 34052.20883
F109: 1.441056987 | G109: 19 | H109: 1.8 | I109: 35594.10759
F110: 1.427618144 | G110: 20 | H110: 1.8 | I110: 37118.07175
F111: 1.414835121 | G111: 21 | H111: 1.8 | I111: 38624.99881
F112: 1.402646877 | G112: 22 | H112: 1.8 | I112: 40115.70069
F113: 1.391000515 | G113: 23 | H113: 1.8 | I113: 41590.91541
F114: 1.379849896 | G114: 24 | H114: 1.8 | I114: 43051.31677
F115: 1.369154534 | G115: 25 | H115: 1.8 | I115: 44497.52235
F116: 1.358878707 | G116: 26 | H116: 1.45 | I116: 45930.1003
F117: 1.348990741 | G117: 27 | H117: 1.45 | I117: 47349.57501
F118: 1.339462418 | G118: 28 | H118: 1.45 | I118: 48756.43203
F119: 1.330268493 | G119: 29 | H119: 1.45 | I119: 50151.12217
F120: 1.321386286 | G120: 30 | H120: 1.45 | I120: 51534.06515
F121: 1.312795352 | G121: 31 | H121: 1.45 | I121: 52905.6527
F122: 1.304477193 | G122: 32 | H122: 1.45 | I122: 54266.25125
F123: 1.296415019 | G123: 33 | H123: 1.45 | I123: 55616.20431
F124: 1.288593543 | G124: 34 | H124: 1.45 | I124: 56955.83458
F125: 1.280998808 | G125: 35 | H125: 1.45 | I125: 58285.44576
F126: 1.273618038 | G126: 36 | H126: 1.45 | I126: 59605.32418
F127: 1.266439507 | G127: 37 | H127: 1.45 | I127: 60915.74028
F128: 1.259452426 | G128: 38 | H128: 1.45 | I128: 62216.94985
F129: 1.252646849 | G129: 39 | H129: 1.45 | I129: 63509.19523
F130: 1.246013583 | G130: 40 | H130: 1.45 | I130: 64792.70632
F131: 1.239544119 | G131: 41 | H131: 1.45 | I131: 66067.70152
F132: 1.23323056 | G132: 42 | H132: 1.45 | I132: 67334.38858
F133: 1.22706557 | G133: 43 | H133: 1.45 | I133: 68592.96535
F134: 1.221042316 | G134: 44 | H134: 1.45 | I134: 69843.62047
F135: 1.215154428 | G135: 45 | H135: 1.45 | I135: 71086.53402
F136: 1.209395954 | G136: 46 | H136: 1.45 | I136: 72321.87806
F137: 1.203761328 | G137: 47 | H137: 1.45 | I137: 73549.81716
F138: 1.198245335 | G138: 48 | H138: 1.45 | I138: 74770.50891
F139: 1.192843082 | G139: 49 | H139: 1.45 | I139: 75984.10432
F140: 1.187549973 | G140: 50 | H140: 1.45 | I140: 77190.74822
F141: 1.182361684 | G141: 51 | H141: 1.1 | I141: 78390.57966
F142: 1.177274146 | G142: 52 | H142: 1.1 | I142: 79583.73225
F143: 1.172283519 | G143: 53 | H143: 1.1 | I143: 80770.33443
F144: 1.16738618 | G144: 54 | H144: 1.1 | I144: 81950.50982
F145: 1.162578705 | G145: 55 | H145: 1.1 | I145: 83124.37744
F146: 1.157857857 | G146: 56 | H146: 1.1 | I146: 84292.05199
F147: 1.153220568 | G147: 57 | H147: 1.1 | I147: 85453.64408
F148: 1.148663931 | G148: 58 | H148: 1.1 | I148: 86609.26042
F149: 1.14418519 | G149: 59 | H149: 1.1 | I149: 87759.00405
F150: 1.139781725 | G150: 60 | H150: 1.1 | I150: 88902.97453
F151: 1.135451048 | G151: 61 | H151: 1.1 | I151: 90041.26807
F152: 1.131190791 | G152: 62 | H152: 1.1 | I152: 91173.97776
F153: 1.126998702 | G153: 63 | H153: 1.1 | I153: 92301.19367
F154: 1.122872632 | G154: 64 | H154: 1.1 | I154: 93423.003
F155: =-0.262*LN(G155)+2.2125 -> 1.118810535 | G155: 65 | H155: 1.1 | I155: =$H$88*F155*1000*G155 -> 94539.49023
F156: 1.114810458 | G156: 66 | H156: 1.1 | I156: 95650.73726
F157: 1.110870534 | G157: 67 | H157: 1.1 | I157: 96756.82349
F158: 1.106988981 | G158: 68 | H158: 1.1 | I158: 97857.82594
F159: 1.103164096 | G159: 69 | H159: 1.1 | I159: 98953.81939
F160: 1.099394247 | G160: 70 | H160: 1.1 | I160: 100044.8764
F161: 1.095677872 | G161: 71 | H161: 1.1 | I161: 101131.0676
F162: 1.092013477 | G162: 72 | H162: 1.1 | I162: 102212.4614
F163: 1.088399626 | G163: 73 | H163: 1.1 | I163: 103289.1245
F164: 1.084834946 | G164: 74 | H164: 1.1 | I164: 104361.1218
F165: 1.081318114 | G165: 75 | H165: 1.1 | I165: 105428.5161
F166: 1.077847865 | G166: 76 | H166: 1.1 | I166: 106491.369
F167: 1.074422979 | G167: 77 | H167: 1.1 | I167: 107549.7402
F168: 1.071042287 | G168: 78 | H168: 1.1 | I168: 108603.6879
F169: 1.067704663 | G169: 79 | H169: 1.1 | I169: 109653.2689
F170: 1.064409022 | G170: 80 | H170: 1.1 | I170: 110698.5383
F171: 1.061154321 | G171: 81 | H171: 1.1 | I171: 111739.5501
F172: 1.057939557 | G172: 82 | H172: 1.1 | I172: 112776.3568
F173: 1.054763761 | G173: 83 | H173: 1.1 | I173: 113809.0098
F174: 1.051625999 | G174: 84 | H174: 1.1 | I174: 114837.5591
F175: 1.048525371 | G175: 85 | H175: 1.1 | I175: 115862.0535
F176: 1.045461008 | G176: 86 | H176: 1.1 | I176: 116882.5407
F177: 1.042432073 | G177: 87 | H177: 1.1 | I177: 117899.0674
F178: 1.039437755 | G178: 88 | H178: 1.1 | I178: 118911.6791
F179: 1.036477271 | G179: 89 | H179: 1.1 | I179: 119920.4203
F180: 1.033549866 | G180: 90 | H180: 1.1 | I180: 120925.3344
F181: 1.030654809 | G181: 91 | H181: 1.1 | I181: 121926.4639
F182: 1.027791393 | G182: 92 | H182: 1.1 | I182: 122923.8506
F183: 1.024958933 | G183: 93 | H183: 1.1 | I183: 123917.535
F184: 1.022156767 | G184: 94 | H184: 1.1 | I184: 124907.5569
F185: 1.019384254 | G185: 95 | H185: 1.1 | I185: 125893.9554
F186: 1.016640774 | G186: 96 | H186: 1.1 | I186: 126876.7686
F187: 1.013925724 | G187: 97 | H187: 1.1 | I187: 127856.0338
F188: 1.011238521 | G188: 98 | H188: 1.1 | I188: 128831.7875
F189: 1.008578599 | G189: 99 | H189: 1.1 | I189: 129804.0657
F190: 1.005945411 | G190: 100 | H190: 1.1 | I190: 130772.9035
F191: 1.003338425 | G191: 101 | H191: 0.8 | I191: 131738.3351
F192: 1.000757123 | G192: 102 | H192: 0.8 | I192: 132700.3945
F193: 0.9982010051 | G193: 103 | H193: 0.8 | I193: 133659.1146
F194: 0.9956695844 | G194: 104 | H194: 0.8 | I194: 134614.5278
F195: 0.9931623883 | G195: 105 | H195: 0.8 | I195: 135566.666
F196: 0.9906789573 | G196: 106 | H196: 0.8 | I196: 136515.5603
F197: 0.9882188454 | G197: 107 | H197: 0.8 | I197: 137461.2414
F198: 0.9857816185 | G198: 108 | H198: 0.8 | I198: 138403.7392
F199: 0.9833668549 | G199: 109 | H199: 0.8 | I199: 139343.0833
F200: 0.9809741442 | G200: 110 | H200: 0.8 | I200: 140279.3026
F201: 0.9786030873 | G201: 111 | H201: 0.8 | I201: 141212.4255
F202: 0.9762532957 | G202: 112 | H202: 0.8 | I202: 142142.4799
F203: 0.9739243915 | G203: 113 | H203: 0.8 | I203: 143069.4931
F204: 0.9716160065 | G204: 114 | H204: 0.8 | I204: 143993.4922
F205: 0.9693277824 | G205: 115 | H205: 0.8 | I205: 144914.5035
F206: 0.9670593699 | G206: 116 | H206: 0.8 | I206: 145832.553
F207: 0.9648104291 | G207: 117 | H207: 0.8 | I207: 146747.6663
F208: 0.9625806284 | G208: 118 | H208: 0.8 | I208: 147659.8684
F209: 0.9603696448 | G209: 119 | H209: 0.8 | I209: 148569.1841
F210: 0.9581771634 | G210: 120 | H210: 0.8 | I210: 149475.6375
F211: 0.9560028771 | G211: 121 | H211: 0.8 | I211: 150379.2526
F212: 0.9538464863 | G212: 122 | H212: 0.8 | I212: 151280.0527
F213: 0.9517076989 | G213: 123 | H213: 0.8 | I213: 152178.0611
F214: 0.9495862298 | G214: 124 | H214: 0.8 | I214: 153073.3002
F215: 0.9474818008 | G215: 125 | H215: 0.8 | I215: 153965.7926
F216: 0.9453941404 | G216: 126 | H216: 0.8 | I216: 154855.5602
F217: 0.9433229833 | G217: 127 | H217: 0.8 | I217: 155742.6246
F218: 0.9412680709 | G218: 128 | H218: 0.8 | I218: 156627.007
F219: =-0.262*LN(G219)+2.2125 -> 0.9392291501 | G219: 129 | H219: 0.8 | I219: =$H$88*F219*1000*G219 -> 157508.7285
F220: 0.937205974 | G220: 130 | H220: 0.8 | I220: 158387.8096
F221: 0.9351983013 | G221: 131 | H221: 0.8 | I221: 159264.2707
F222: 0.9332058963 | G222: 132 | H222: 0.8 | I222: 160138.1318
F223: 0.9312285284 | G223: 133 | H223: 0.8 | I223: 161009.4126
F224: 0.9292659724 | G224: 134 | H224: 0.8 | I224: 161878.1324
F225: 0.927318008 | G225: 135 | H225: 0.8 | I225: 162744.3104
F226: 0.9253844199 | G226: 136 | H226: 0.8 | I226: 163607.9654
F227: 0.9234649974 | G227: 137 | H227: 0.8 | I227: 164469.116
F228: 0.9215595345 | G228: 138 | H228: 0.8 | I228: 165327.7805
F229: 0.9196678295 | G229: 139 | H229: 0.8 | I229: 166183.9768
F230: 0.9177896853 | G230: 140 | H230: 0.8 | I230: 167037.7227
F231: 0.9159249087 | G231: 141 | H231: 0.8 | I231: 167889.0358
F232: 0.9140733109 | G232: 142 | H232: 0.8 | I232: 168737.9332
F233: 0.9122347069 | G233: 143 | H233: 0.8 | I233: 169584.432
F234: 0.9104089155 | G234: 144 | H234: 0.8 | I234: 170428.549
... 1856 more rows

Sheet Tevékenységi lista (hidden)
A1: Biztosított tevékenység: | B1: kockázati osztály | C1: munkáltatói felelősség díj /fő
A2: (nép)művészeti, kulturális rendezvény (nem zenei) | B2: 3 | G2: =IF(--ISNUMBER(SEARCH(tev.lista,A2)),MAX($G$1:G1)+1,"") -> 1 | H2: =IFERROR(INDEX($A$2:$A$23,MATCH(ROWS($G$2:G2),$G$2:$G$23,0)),"") -> (nép)művészeti, kulturális rendezvény (nem zenei) | J2: =$H$2:INDEX($H$2:$H$23,COUNTIF($H$2:$H$23,"?*")) -> (nép)művészeti, kulturális rendezvény (nem zenei)
A3: bál | B3: 3 | G3: =IF(--ISNUMBER(SEARCH(tev.lista,A3)),MAX($G$1:G2)+1,"") -> 2 | H3: =IFERROR(INDEX($A$2:$A$23,MATCH(ROWS($G$2:G3),$G$2:$G$23,0)),"") -> bál
A4: búcsú | B4: 3 | G4: =IF(--ISNUMBER(SEARCH(tev.lista,A4)),MAX($G$1:G3)+1,"") -> 3 | H4: =IFERROR(INDEX($A$2:$A$23,MATCH(ROWS($G$2:G4),$G$2:$G$23,0)),"") -> búcsú
A5: családi nap | B5: 3 | G5: =IF(--ISNUMBER(SEARCH(tev.lista,A5)),MAX($G$1:G4)+1,"") -> 4 | H5: =IFERROR(INDEX($A$2:$A$23,MATCH(ROWS($G$2:G5),$G$2:$G$23,0)),"") -> családi nap
A6: csapatépítő tréning | B6: 1 | G6: =IF(--ISNUMBER(SEARCH(tev.lista,A6)),MAX($G$1:G5)+1,"") -> 5 | H6: =IFERROR(INDEX($A$2:$A$23,MATCH(ROWS($G$2:G6),$G$2:$G$23,0)),"") -> csapatépítő tréning
A7: értekezlet, workshop | B7: 1 | G7: =IF(--ISNUMBER(SEARCH(tev.lista,A7)),MAX($G$1:G6)+1,"") -> 6 | H7: =IFERROR(INDEX($A$2:$A$23,MATCH(ROWS($G$2:G7),$G$2:$G$23,0)),"") -> értekezlet, workshop
A8: falunap | B8: 3 | G8: =IF(--ISNUMBER(SEARCH(tev.lista,A8)),MAX($G$1:G7)+1,"") -> 7 | H8: =IFERROR(INDEX($A$2:$A$23,MATCH(ROWS($G$2:G8),$G$2:$G$23,0)),"") -> falunap
A9: fogadás, parti | B9: 1 | G9: =IF(--ISNUMBER(SEARCH(tev.lista,A9)),MAX($G$1:G8)+1,"") -> 8 | H9: =IFERROR(INDEX($A$2:$A$23,MATCH(ROWS($G$2:G9),$G$2:$G$23,0)),"") -> fogadás, parti
A10: gasztronómiai fesztivál | B10: 3 | G10: =IF(--ISNUMBER(SEARCH(tev.lista,A10)),MAX($G$1:G9)+1,"") -> 9 | H10: =IFERROR(INDEX($A$2:$A$23,MATCH(ROWS($G$2:G10),$G$2:$G$23,0)),"") -> gasztronómiai fesztivál
A11: gyermekrendezvény | B11: 3 | G11: =IF(--ISNUMBER(SEARCH(tev.lista,A11)),MAX($G$1:G10)+1,"") -> 10 | H11: =IFERROR(INDEX($A$2:$A$23,MATCH(ROWS($G$2:G11),$G$2:$G$23,0)),"") -> gyermekrendezvény
A12: hagyományőrző, illetve történelmi helyszínhez kötődő rendezvény | B12: 3 | G12: =IF(--ISNUMBER(SEARCH(tev.lista,A12)),MAX($G$1:G11)+1,"") -> 11 | H12: =IFERROR(INDEX($A$2:$A$23,MATCH(ROWS($G$2:G12),$G$2:$G$23,0)),"") -> hagyományőrző, illetve történelmi helyszínhez kötődő rendezvény
A13: kiállítás, vásár | B13: 2 | G13: =IF(--ISNUMBER(SEARCH(tev.lista,A13)),MAX($G$1:G12)+1,"") -> 12 | H13: =IFERROR(INDEX($A$2:$A$23,MATCH(ROWS($G$2:G13),$G$2:$G$23,0)),"") -> kiállítás, vásár
A14: komolyzenei koncert, hangverseny | B14: 3 | G14: =IF(--ISNUMBER(SEARCH(tev.lista,A14)),MAX($G$1:G13)+1,"") -> 13 | H14: =IFERROR(INDEX($A$2:$A$23,MATCH(ROWS($G$2:G14),$G$2:$G$23,0)),"") -> komolyzenei koncert, hangverseny
A15: koncert (könnyűzenei) | B15: 4 | G15: =IF(--ISNUMBER(SEARCH(tev.lista,A15)),MAX($G$1:G14)+1,"") -> 14 | H15: =IFERROR(INDEX($A$2:$A$23,MATCH(ROWS($G$2:G15),$G$2:$G$23,0)),"") -> koncert (könnyűzenei)
A16: konferencia | B16: 1 | G16: =IF(--ISNUMBER(SEARCH(tev.lista,A16)),MAX($G$1:G15)+1,"") -> 15 | H16: =IFERROR(INDEX($A$2:$A$23,MATCH(ROWS($G$2:G16),$G$2:$G$23,0)),"") -> konferencia
A17: kongresszus | B17: 1 | G17: =IF(--ISNUMBER(SEARCH(tev.lista,A17)),MAX($G$1:G16)+1,"") -> 16 | H17: =IFERROR(INDEX($A$2:$A$23,MATCH(ROWS($G$2:G17),$G$2:$G$23,0)),"") -> kongresszus
A18: önkormányzati, fesztivál jellegű rendezvény | B18: 3 | G18: =IF(--ISNUMBER(SEARCH(tev.lista,A18)),MAX($G$1:G17)+1,"") -> 17 | H18: =IFERROR(INDEX($A$2:$A$23,MATCH(ROWS($G$2:G18),$G$2:$G$23,0)),"") -> önkormányzati, fesztivál jellegű rendezvény
A19: promóciós rendezvény | B19: 2 | G19: =IF(--ISNUMBER(SEARCH(tev.lista,A19)),MAX($G$1:G18)+1,"") -> 18 | H19: =IFERROR(INDEX($A$2:$A$23,MATCH(ROWS($G$2:G19),$G$2:$G$23,0)),"") -> promóciós rendezvény
A20: sajtótájékoztató | B20: 1 | G20: =IF(--ISNUMBER(SEARCH(tev.lista,A20)),MAX($G$1:G19)+1,"") -> 19 | H20: =IFERROR(INDEX($A$2:$A$23,MATCH(ROWS($G$2:G20),$G$2:$G$23,0)),"") -> sajtótájékoztató
A21: sport rendezvény (kivéve futball, extrém, autós, motoros, kerékpáros sportok) | B21: 4 | G21: =IF(--ISNUMBER(SEARCH(tev.lista,A21)),MAX($G$1:G20)+1,"") -> 20 | H21: =IFERROR(INDEX($A$2:$A$23,MATCH(ROWS($G$2:G21),$G$2:$G$23,0)),"") -> sport rendezvény (kivéve futball, extrém, autós, motoros, kerékpáros sportok)
A22: termékbemutató | B22: 2 | G22: =IF(--ISNUMBER(SEARCH(tev.lista,A22)),MAX($G$1:G21)+1,"") -> 21 | H22: =IFERROR(INDEX($A$2:$A$23,MATCH(ROWS($G$2:G22),$G$2:$G$23,0)),"") -> termékbemutató
A23: zenei fesztivál | B23: 4 | G23: =IF(--ISNUMBER(SEARCH(tev.lista,A23)),MAX($G$1:G22)+1,"") -> 22 | H23: =IFERROR(INDEX($A$2:$A$23,MATCH(ROWS($G$2:G23),$G$2:$G$23,0)),"") -> zenei fesztivál
